Cogmind - Beta 15 @@@ ROGUE MODE // 2025.07.14 @ 02:10:59 Player: dio Result: Destroyed by D-53 Grenadier with Mini Grenade Launcher Performance ------------- Evolutions (1) 500 Regions Visited (4) 800 Robots Destroyed (32) 160 Value Destroyed (565) 565 Prototype IDs (1) 20 Alien Tech Used (0) 0 Bonus (-130) -130 TOTAL SCORE: 1915 Bonus ------- Follower Combat Kills 7 Friendly Fire -137 Cogmind --------- Core Integrity 0/400 Matter 203/300 Energy 280/280 System Corruption 0% Temperature Cool (0) Movement Core (400) Ox7 Location -9/Mines Parts ------- > --- POWER (1) -------- Heavy Ion Engine > --- PROPULSION (3) --- (None) > --- UTILITY (2) ------ Medium Storage Unit > --- WEAPON (3) ------- Spread Laser Mining Claw > --- INVENTORY (10) --- Light Nuclear Core Improved Heat Sink Medium Matter Pod (100) Medium Matter Pod (100) Peak State ------------ > --- POWER ------------ Heavy Ion Engine > --- PROPULSION ------- Aluminum Leg Aluminum Leg Aluminum Leg > --- UTILITY ---------- Medium Storage Unit Shield Generator > --- WEAPON ----------- Beam Rifle Shotgun Improved Light Cannon > --- INVENTORY -------- Light Nuclear Core Aluminum Leg Improved Heat Sink Medium Matter Pod Medium Matter Pod Light Armor Plating Spread Laser Rocket Launcher Mining Claw [Rating: 16] Favorites ----------- Power Light Ion Engine Engine Light Ion Engine Propulsion Aluminum Leg Leg Aluminum Leg Wheel Wheel Flight Unit Flight Unit Utility Medium Storage Unit Device Shield Generator Storage Medium Storage Unit Processor Signal Interpreter Protection Light Armor Plating Weapon Medium Laser Energy Gun Medium Laser Energy Cannon Beam Cannon Ballistic Gun Shotgun Ballistic Cannon Improved Light Cannon Launcher Rocket Launcher Slashing Weapon Mining Claw Build | -11 -10 -10 -9 -9 ------- Run | Yrd Mat Min Mat Min Slots Evolved 2 | . . . 2 . Power . | . . . . . Propulsion 1 | . . . 1 . Utility . | . . . . . Weapon 1 | . . . 1 . Parts Attached 34 | 8 6 7 10 3 Power 5 | 1 2 1 1 . Engine 5 | 1 2 1 1 . Core . | . . . . . Reactor . | . . . . . Propulsion 8 | 2 1 2 2 1 Treads . | . . . . . Leg 5 | . . 2 2 1 Wheel 2 | 2 . . . . Hover . | . . . . . Flight 1 | . 1 . . . Utility 8 | 2 2 2 1 1 Device 3 | 1 1 . 1 . Storage 3 | 1 1 1 . . Processor 1 | . . 1 . . Hackware . | . . . . . Protection 1 | . . . . 1 Artifact . | . . . . . Weapon 13 | 3 1 2 6 1 Energy Gun 4 | 2 . . 1 1 Energy Cannon 3 | . 1 . 2 . Ballistic Gun 3 | 1 . 1 1 . Ballistic Cannon 1 | . . . 1 . Launcher 1 | . . 1 . . Special Weapon . | . . . . . Impact Weapon . | . . . . . Slashing Weapon 1 | . . . 1 . Piercing Weapon . | . . . . . Special Melee Weapon . | . . . . . Unidentified Prototypes . | . . . . . Parts Lost 17 | . 2 2 3 10 Power 2 | . 1 . 1 . Propulsion 7 | . . 2 1 4 Utility 3 | . 1 . . 2 Weapon 5 | . . . 1 4 Highest Loss Streak 10 | . 2 1 1 10 To Critical Strikes . | . . . . . Average Backups 6 | 1 4 7 8 8 Power 1 | . . 1 1 1 Propulsion . | 1 2 1 . . Utility 1 | . . 1 2 3 Weapon 2 | . 1 2 4 2 Tool/Special . | . . . . . Unused Backups 8 | . . . 6 2 Power 4 | . . . 3 1 Propulsion . | . . . . . Utility 3 | . . . 2 1 Weapon 1 | . . . 1 . Tool/Special . | . . . . . Average Slot Usage (%) 92 | . 98 98 88 90 Engine 12 | . 13 14 10 11 Leg 16 | . . 9 25 29 Wheel 9 | . 27 17 . . Device 6 | . 12 4 4 8 Storage 14 | . 13 16 15 11 Processor 1 | . . 7 . . Energy Gun 12 | . 18 13 9 3 Energy Cannon 6 | . 6 9 6 . Ballistic Gun 3 | . 3 4 2 8 Ballistic Cannon 3 | . . . 5 9 Slashing Weapon 4 | . . . 7 7 Peak Build Rating 16 | 7 7 8 15 16 Average Rating 9 | 2 6 7 11 13 On Entrance 7 | . 7 7 8 15 Naked Turns . | . . . . . Heaviest Build 32 | 9 19 19 29 32 Greatest Support 30 | 20 20 20 30 30 Greatest Overweight (x) 7 | . . 1 7 7 Average Overweight (x) . | . . . . . Largest Inventory Capacity 10 | 5 10 10 10 10 Average Capacity 9 | 5 7 10 10 10 Most Carried 10 | 4 6 10 10 9 Average Carried 6 | 1 4 7 8 8 Final Capacity 10 | 5 10 10 10 10 Final Carried 9 | 3 5 9 9 4 Class Distribution -------------------- 87% | Mutant 12% | Gunner Dominant Class ---------------- Mutant | -10/Materials Mutant | -10/Mines Mutant | -9/Materials Mutant | -9/Mines Resources | -11 -10 -10 -9 -9 ----------- Run | Yrd Mat Min Mat Min Matter Collected 885 | 306 103 147 329 . Remotely . | . . . . . Salvage Created 689 | 55 164 130 305 35 Parts 57 | 6 10 16 25 . Haulers Intercepted . | . . . . . Recyclers Shooed 1 | . . . 1 . Parts Field Recycled . | . . . . . Retrieved Matter . | . . . . . Parts Self-Destructed . | . . . . . Prevented . | . . . . . Kills | -11 -10 -10 -9 -9 ------- Run | Yrd Mat Min Mat Min Combat Hostiles Destroyed 28 | 1 6 9 11 1 Guns 18 | 1 6 5 5 1 Cannons 8 | . . 2 6 . AOE 2 | . . 2 . . Classes Destroyed 6 | 2 1 . 2 1 Worker 2 | 1 . . 1 . Watcher 1 | . . . 1 . Swarmer 19 | . 3 9 7 . Grunt 6 | 1 3 . 2 . Sentry 2 | . . . 2 . Demolisher 1 | . . . . 1 Thug 1 | . . . . 1 Best Kill Streak 5 | 2 5 3 4 1 Combat Bots Only 5 | 1 5 3 4 1 Max Kills in Single Turn 2 | 1 2 2 2 1 Gunslinging 1 | . 1 . . . Exploded 2 | . . 2 . . Melee . | . . . . . Uniques/NPCs Destroyed . | . . . . . Combat | -11 -10 -10 -9 -9 -------- Run | Yrd Mat Min Mat Min Hostile Shots Fired 186 | 3 51 34 71 27 Missed 51 | 2 18 7 22 2 Hits 135 | 1 33 27 49 25 Projectile 135 | 1 33 27 49 25 AOE 29 | . . . . 29 Critical Strikes 3 | . . . 3 . Damage Taken 2238 | 10 361 209 570 1088 Core 550 | . 80 67 156 247 Absorbed by Shields 45 | . . . 4 41 Core Remaining (%) 70 | 100 . 41 . . Volleys Fired 75 | 6 19 15 27 8 Largest 3 | 2 2 2 3 3 Hottest 178 | 70 110 110 178 122 Shots Fired 162 | 12 38 29 64 19 Gun 103 | 12 35 15 31 10 Cannon 52 | . 3 12 31 6 Launcher 7 | . . 2 2 3 Special . | . . . . . Kinetic 39 | 6 13 3 6 11 Thermal 116 | 6 25 24 56 5 Explosive 7 | . . 2 2 3 Electromagnetic . | . . . . . Robot Hit Streak 6 | 6 6 3 5 5 Robot Miss Streak 21 | 1 3 4 21 4 Penetration Max . | . . . . . Secondary Targets 2 | . 2 . . . Max Gunslinging Chain 1 | . 1 . . . Shots Hit Robots 85 | 9 23 14 30 9 Core Hits 61 | 5 9 9 27 11 Critical Kills . | . . . . . Critical Parts Destroyed . | . . . . . Critical Strikes 3 | . . 1 2 . Burn 3 | . . 1 2 . Melee Attacks 1 | . . . 1 . Impact . | . . . . . Slashing 1 | . . . 1 . Piercing . | . . . . . Sneak Attacks . | . . . . . Combat Hostiles . | . . . . . Follow-up Attacks . | . . . . . Damage Inflicted 1558 | 104 273 347 628 206 Guns 808 | 104 256 97 263 88 Cannons 473 | . 17 138 265 53 Explosions 277 | . . 112 100 65 Melee . | . . . . . Ramming . | . . . . . Kinetic 288 | 41 67 10 65 105 Thermal 993 | 63 206 225 463 36 Explosive 277 | . . 112 100 65 Electromagnetic . | . . . . . Impact . | . . . . . Slashing . | . . . . . Piercing . | . . . . . Highest Corruption . | . . . . . Average Corruption . | . . . . . Corruption Purged . | . . . . . Corruption Blocked . | . . . . . Overload Shots . | . . . . . Overflow Damage . | . . . . . Projectiles . | . . . . . Explosions . | . . . . . Melee . | . . . . . Knockbacks 2 | . . . . 2 Impact . | . . . . . Kinetic 2 | . . . . 2 Secondary . | . . . . . Self-Inflicted Damage 16 | . . . . 16 Shots 1 | . . . . 1 Rammed . | . . . . . Targets Rammed . | . . . . . Kicked . | . . . . . Crushed . | . . . . . Highest Temperature 537 | 76 68 248 537 90 Average Temperature 103 | 36 26 81 162 45 Received Heat Transfer 312 | 6 183 . 123 . Effects 8 | . . . 8 . Shutdowns 2 | . . . 2 . Matter Decay 1 | . . . 1 . Damage (minor) 1 | . . . 1 . Damage (major) 3 | . . . 3 . Damage (core) 1 | . . . 1 . Siege Activations . | . . . . . Martial Activations . | . . . . . Shielding Activations . | . . . . . Robots Disrupted . | . . . . . Combat Hostiles . | . . . . . Robots Corrupted . | . . . . . Combat Hostiles . | . . . . . Parts Fried . | . . . . . Impact Corruptions . | . . . . . Robots Melted . | . . . . . Combat Hostiles . | . . . . . Parts Melted 6 | . . 2 4 . Heat Transferred 2617 | 185 592 629 1149 62 Parts Sabotaged . | . . . . . Parts Stolen . | . . . . . Parts Stripped . | . . . . . Power Chain Reactions . | . . . . . Alert | -11 -10 -10 -9 -9 ------- Run | Yrd Mat Min Mat Min Maximum Alert Level . | . . . . . Low Security (%) 100 | 100 100 100 100 100 Level 1 . | . . . . . Level 2 . | . . . . . Level 3 . | . . . . . Level 4 . | . . . . . Level 5 . | . . . . . High Security . | . . . . . Max Security . | . . . . . Peak Influence 124 | 20 70 99 124 34 Initial 14 | . 6 . 14 . Average 33 | 1 27 40 40 3 Influence Increases 829 | 25 177 229 338 60 Destroy 0b10 Robot/C 580 | 20 120 180 220 40 Destroy 0b10 Robot/NC 15 | 5 . . 10 . Destroy Leader 102 | . 20 30 42 10 Allied During Kill 4 | . . . . 4 Successful Hack 13 | . 7 . 6 . Disable Machine 15 | . 15 . . . Destroy Structure 40 | . . 19 15 6 Partial Spotted 30 | . 15 . 15 . Lose Combat Pursuer 30 | . . . 30 . Influence Decreases 809 | 15 187 190 377 40 Entered New Map 29 | . 4 . 25 . Time Decay 674 | 15 163 170 322 4 Lost Part 86 | . 20 20 30 16 Lost Ally 20 | . . . . 20 Squads Dispatched 3 | . 3 . . . Investigation 2 | . 2 . . . Extermination . | . . . . . Reinforcement 1 | . 1 . . . Assault . | . . . . . Garrison . | . . . . . Intercept . | . . . . . Searches Triggered . | . . . . . Construction Impeded . | . . . . . Haulers Reinforced . | . . . . . Active Scanning Responses . | . . . . . Cargo Convoy Interrupts . | . . . . . Stealth | -11 -10 -10 -9 -9 --------- Run | Yrd Mat Min Mat Min Distress Signals 1 | . 1 . . . Communications Jammed . | . . . . . Distress Signals . | . . . . . Times Spotted 43 | 1 12 6 20 4 Peak Tracking Total 6 | 1 6 3 5 2 Tactical Retreats 2 | . . . 2 . Traps | -11 -10 -10 -9 -9 ------- Run | Yrd Mat Min Mat Min Traps Triggered 5 | . 3 . 2 . Indirectly . | . . . . . Trap Hack Attempts . | . . . . . Triggered . | . . . . . Disarmed . | . . . . . Reprogrammed . | . . . . . Reused . | . . . . . Traps Extracted . | . . . . . Installed . | . . . . . Triggered . | . . . . . Machines | -11 -10 -10 -9 -9 ---------- Run | Yrd Mat Min Mat Min Machines Disabled 1 | . 1 . . . Max in Single Turn 1 | . 1 . . . Machines Repaired . | . . . . . Machines Dismantled . | . . . . . Machines Sabotaged . | . . . . . Overloaded Fab Kills . | . . . . . Hacking | -11 -10 -10 -9 -9 --------- Run | Yrd Mat Min Mat Min Machines Accessed 7 | . 4 . 3 . Terminals 5 | . 4 . 1 . Fabricators . | . . . . . Repair Stations . | . . . . . Recycling Units 1 | . . . 1 . Scanalyzers 1 | . . . 1 . Garrison Access . | . . . . . Total Hacks 12 | . 4 . 8 . Successful 12 | . 4 . 8 . Failed . | . . . . . Catastrophic . | . . . . . Database Lockouts . | . . . . . Manual . | . . . . . Terminals 5 | . 4 . 1 . Fabricators . | . . . . . Repair Stations . | . . . . . Recycling Units 5 | . . . 5 . Scanalyzers 2 | . . . 2 . Garrison Access . | . . . . . Terminal Hacks 5 | . 4 . 1 . Record 1 | . 1 . . . Robot Analysis 1 | . 1 . . . Emergency Access Points 1 | . 1 . . . Alert Level 1 | . 1 . . . Zone Layout 1 | . . . 1 . Fabricator Hacks . | . . . . . Repair Station Hacks . | . . . . . Recycling Unit Hacks 5 | . . . 5 . Recycle Component 3 | . . . 3 . Process 1 | . . . 1 . Retrieve Matter 1 | . . . 1 . Scanalyzer 2 | . . . 2 . Insert Component 1 | . . . 1 . Analyze 1 | . . . 1 . Garrison Access Hacks . | . . . . . Unauthorized Hacks . | . . . . . Terminals . | . . . . . Fabricators . | . . . . . Repair Stations . | . . . . . Recycling Units . | . . . . . Scanalyzers . | . . . . . Garrison Access . | . . . . . Data Cores Recovered . | . . . . . Used . | . . . . . Hacking Detections . | . . . . . Full Trace Events . | . . . . . Feedback Events . | . . . . . Feedback Blocked . | . . . . . Robot Schematics Acquired . | . . . . . Robots Built . | . . . . . Authchips . | . . . . . Time . | . . . . . Total Robot Build Rating . | . . . . . Part Schematics Acquired 1 | . . . 1 . Parts Built . | . . . . . Authchips . | . . . . . Time . | . . . . . Total Part Build Rating . | . . . . . Parts Repaired . | . . . . . Time . | . . . . . Parts Recycled 3 | . . . 3 . Recycled Matter 13 | . . . 13 . Retrieved Matter 13 | . . . 13 . Retrieved Components . | . . . . . Parts Scanalyzed 1 | . . . 1 . Part Schematics Acquired 1 | . . . 1 . Parts Damaged . | . . . . . Bothacking | -11 -10 -10 -9 -9 ------------ Run | Yrd Mat Min Mat Min Used RIF Installer . | . . . . . Robots Hacked . | . . . . . Non-combat . | . . . . . Combat . | . . . . . Robot Hacks Applied . | . . . . . Relay Couplers Released . | . . . . . Fabnet Peak Effective % . | . . . . . Robots Rewired . | . . . . . Allies Hacked . | . . . . . Hacks Repelled . | . . . . . Allies | -11 -10 -10 -9 -9 -------- Run | Yrd Mat Min Mat Min Total Allies 2 | . . . . 2 Largest Group 2 | . . . . 2 Highest-Rated Group 43 | . . . . 43 Highest-Rated Ally 31 | . . . . 31 Total Orders . | . . . . . Ally Attacks 3 | . . . . 3 Total Damage 64 | . . . . 64 Kills 1 | . . . . 1 Allies Corrupted . | . . . . . Allies Melted . | . . . . . Intel | -11 -10 -10 -9 -9 ------- Run | Yrd Mat Min Mat Min Active Infowar (turns) . | . . . . . Robot Analysis Total 1 | . 1 . . . Derelict Logs Recovered 2 | . . 2 . . Drone Launches . | . . . . . Drone Recoveries . | . . . . . Exploration | -11 -10 -10 -9 -9 ------------- Run | Yrd Mat Min Mat Min Turns Passed 1981 | 151 366 398 957 109 Spaces Moved 1470 | 147 341 360 560 62 Core 80 | 76 . . 3 1 Treads . | . . . . . Legs 714 | . . 96 557 61 Wheels 676 | 71 341 264 . . Hover . | . . . . . Flight . | . . . . . Fastest Speed 50 | 50 80 80 120 120 Average Speed 108 | 64 80 92 145 127 Slowest Speed 400 | 80 80 120 400 400 Overloaded Moves . | . . . . . Propulsion Burnouts . | . . . . . Robots Hopped . | . . . . . Potential Cave-ins . | . . . . . Cave-ins Triggered . | . . . . . Exploration Rate (%) 29 | 9 33 53 38 15 Regions Visited 4 Branch Regions 2 Pre-discovered Areas 1 | . . 1 . . Known Exits Taken 1 | . . 1 . . Unknown Exits Taken 3 | 1 1 . 1 . Scrap Searched 2 | . . 2 . . Spaces Dug . | . . . . . Terrain Destroyed 53 | . . 22 12 19 Melee . | . . . . . Projectile 1 | . . . . 1 AOE 52 | . . 22 12 18 Terrain Rammed . | . . . . . Walls Destroyed . | . . . . . Machines Disabled . | . . . . . Actions | -11 -10 -10 -9 -9 --------- Run | Yrd Mat Min Mat Min Total 1710 | 192 399 397 645 77 Wait 56 | 21 19 3 13 . Move 1466 | 146 340 359 559 62 Hop . | . . . . . Pick Up 43 | 10 6 9 18 . Fast Attach 2 | . 1 . 1 . Attach 32 | 8 6 3 10 5 Detach 8 | 1 3 1 3 . Swap 15 | . 3 5 5 2 Drop 12 | . 2 2 8 . Fire 75 | 6 19 15 27 8 Melee 1 | . . . 1 . Ram . | . . . . . Kick . | . . . . . Crush . | . . . . . Escape Stasis . | . . . . . Rewire . | . . . . . Trap . | . . . . . Miscellaneous . | . . . . . Route ------- -11/Scrapyard -10/Materials (discovered 2 exits: *Mat / [*Min]) -10/Mines -9/Materials (discovered 4 exits: *Mat x3 / [*Min]) -9/Mines History --------- Turn | Location | Event 2 | -11/Scrapyard | Met Revision 17 129 | -11/Scrapyard | Discovered new exit (range 8) 152 | -11/Scrapyard | Entered Materials 309 | -10/Materials | Build established: Mutant 370 | -10/Materials | Discovered new exit (range 14) 421 | -10/Materials | Discovered new exit (range 15) 518 | -10/Materials | Entered Mines 550 | -10/Mines | Learned 2 Materials zone layouts 584 | -10/Mines | Learned location of Zion (-7) 620 | -10/Mines | Received a Rocket Launcher from a helpful Derelict 767 | -10/Mines | Discovered new exit (range 9) 779 | -10/Mines | Core integrity fell below 50% 795 | -10/Mines | Identified exit to Materials 916 | -10/Mines | Entered Materials 916 | -9/Materials | Evolved 2 slots: Propulsion x1, Weapon x1 917 | -9/Materials | Identified exit to Materials 1738 | -9/Materials | Discovered new exit (range 16) 1801 | -9/Materials | Discovered exit to Materials (range 7) 1873 | -9/Materials | Entered Mines 1895 | -9/Mines | Assembled infested the area 1900 | -9/Mines | Assisted by a Guerilla fighting off Assembled 1956 | -9/Mines | Core integrity fell below 50% 1973 | -9/Mines | Core integrity fell below 20% 1981 | -9/Mines | Lost 3 allies 1982 | -9/Mines | Destroyed by D-53 Grenadier with Mini Grenade Launcher Last Messages --------------- [Achievement: Backstab] D-53 Grenadier knocked back. Shield Generator destroyed. The unstable cave ceiling collapses. Shotgun destroyed. The unstable cave ceiling collapses. Aluminum Leg destroyed. Imp. Light Cannon destroyed. Lgt. Armor Plating destroyed. Rocket Launcher destroyed. Beam Rifle destroyed. The unstable cave ceiling collapses. Aluminum Leg destroyed. The unstable cave ceiling collapses. Aluminum Leg destroyed. The unstable cave ceiling collapses. Aluminum Leg destroyed. D-53 Grenadier destroyed. The unstable cave ceiling collapses. [Achievement: First Step to Greatness] Map ----- +----------------------------------------------------+ | ?????????????????????????????????????????????????? | | ?????????????????????????????????????????????????? | | ?????????????????????????????????????????????????? | | ?????????????????????????????????????????????????? | | ?????????????????????????????????????????????????? | | ?????????????????????????????????????????????????? | | ??????????????????????????#??????????????????????? | | ?????????????????????????# ?"????????????????????? | | ?????????????????????????# " " ??????????????????? | | ????????????????????????? "" " #?????????????????? | | ?????????????????????????#%" #?????????????????? | | ?????????????????????????#% % #?????????????????? | | ???????????????????????### #?????????????????? | | ???????????????????????# ##????????????????? | | ???????????????????????# #????????????????? | | ???????????????????????# ##???????????????? | | ???????????????????????# # #???????????????? | | ???????????????????????# #d #???????????????? | | ???????????????????????# ## # ####????????????? | | ???????????????????????# # t #????????????? | | ???????????????????????# #???????????????? | | ??????????????????????## # ##??????????????? | | ??????????????????????# #??????????????? | | ?????????????????????## # #??????????????? | | ?????????????????????# #??????????????? | | ??????????????????????# @ #??????????????? | | ??????????????????##### #??????????????? | | ??????????????????# #??????????????? | | ??????????????????# ###??????????????? | | ??????????????????# #### ###????????????????? | | ??????????????????# #??########??????????????????? | | ??????????????##### #????????????????????????????? | | ??????????????# #????????????????????????????? | | ??????????????# ######???????????????????????????? | | ?????????????## #???? ???????????????????????????? | | ?????????##### ##?? #???????????????????????????? | | ????????## ##? #???????????????????????????? | | ????##### ## ###### ?????????????????? | | ?# ?????????????????? | | ?# ########## ?????????????????? | | ????????????## ##########????????????????????? | | ?????????????## #?????????????????????????????? | | ??????????????## ##?????????????????????????????? | | ????????????#### ##?????????????????????????????? | | ????????????# #??####???????????????????????? | | ????????????# #### ##??????????????????????? | | ????????????# ## #??????????????????????? | | ????????????##### #??????????????????????? | | ????????????????## ##??????????????????????? | | ?????????????????## ####???????????????????????? | +----------------------------------------------------+ Best States ------------- Heat Dissipation 35 Energy Generation 14 Energy Capacity 280 Matter Stores 400 Matter Capacity 400 Sight Range 16 Terrain Scan Density 10 Armor Coverage 150 Evasion (%) 55 Item Schematics ----------------- Hvy. Ion Engine | -9/Materials | Scanalyzed Robot Schematics ------------------ None Fabricated ------------ Nothing Repaired ---------- Nothing Alien Tech Used ----------------- None Achievements -------------- Backstab First Step to Greatness Safety First Storm Trooper Uninvited Guest Challenges ------------ None Game ------ Seed TargetBoltGuard Manual? 0 Play Time 01:41:48 Cumulative 1.6 hours Start 2025.07.14 @ 00:14:19 End 2025.07.14 @ 02:10:59 Sessions 1 Manual Loads 0 Difficulty Rogue Special Mode None Game No. 1 Rogue 1 Adventurer 0 Explorer 0 Win Type - Total 0 Types 0/0/0/0/0/0/0/0/0/0 Lore% 0 Gallery% 2 Achievement% 1 Wizard Run 0 Options --------- Layout 1 ASCII 0 Keyboard 0 Movement Arrows Keybinds 0 Fullscreen 1 Font 32/SmallcapsGlow Map View 50x35 Zoom Use 2% Tactical HUD 0 Map Filters NONE Filters NONE Steam 1 RUN: 50383e88-4464-4a9d-bf79-80775adfb6b7